[Event "46th GRE-chT Premier 2018"]
[Site "Rio Achaia"]
[Date "2018.07.11"]
[Round "3"]
[White "Papaioannou, Ioannis"]
[Black "Theodorou, Nikolas"]
[Result "1/2-1/2"]
[ECO "C92"]
[WhiteElo "2647"]
[BlackElo "2513"]
[Annotator "ChessBase"]
[PlyCount "27"]
[EventDate "2018.07.10"]
[EventType "team-tourn"]
[EventCountry "GRE"]
[SourceTitle "playchess.com"]
[Source "ChessBase"]
[SourceQuality "1"]
[TimeControl "40/5400+30:1800+30"]

1. e4 {[%emt 0:00:00]} e5 {[%emt 0:00:00]} 2. Nf3 {[%emt 0:00:18]} Nc6 {[%emt 0:00:00]} 3. Bb5 {[%emt 0:00:35]} a6 {[%emt 0:00:21]} 4. Ba4 {[%emt 0:00:26]} Nf6 {[%emt 0:00:21]} 5. O-O {[%emt 0:01:15]} Be7 {[%emt 0:00:58]} 6. Re1 {[%emt 0:01:00]} b5 {[%emt 0:00:33]} 7. Bb3 {[%emt 0:00:06]} O-O {[%emt 0:00:42]} 8. c3 {[%emt 0:00:55]} d6 {[%emt 0:00:43]} 9. h3 {[%emt 0:00:42]} Bb7 {[%emt 0:00:56]} 10. d4 {[%emt 0:00:51]} Re8 {[%emt 0:00:46]} 11. Ng5 {[%emt 0:00:30]} Rf8 {[%emt 0:00:09]} 12. Nf3 {[%emt 0:00:09]} Re8 {[%emt 0:00:31]} 13. Ng5 {[%emt 0:00:07]} Rf8 {[%emt 0:00:06]} 14. Nf3 {[%emt 0:00:06]} 1/2-1/2

[Event "46th GRE-chT Premier 2018"]
[Site "Rio Achaia"]
[Date "2018.07.11"]
[Round "3"]
[White "Boruchovsky, Avital"]
[Black "Macieja, Bartlomiej"]
[Result "1/2-1/2"]
[ECO "B12"]
[WhiteElo "2558"]
[BlackElo "2525"]
[Annotator "RC"]
[PlyCount "195"]
[EventDate "2018.07.10"]
[EventType "team-tourn"]
[EventCountry "GRE"]
[SourceTitle "playchess.com"]
[Source "ChessBase"]
[SourceQuality "1"]
[TimeControl "40/5400+30:1800+30"]

1. e4 {[%emt 0:00:00]} c6 {[%emt 0:01:33]} 2. d4 {[%emt 0:00:00]} d5 {[%emt 0:00:06]} 3. e5 {[%emt 0:00:00]} Bf5 {[%emt 0:00:05]} 4. Nf3 {[%emt 0:00:01]} e6 {[%emt 0:00:04]} 5. Be2 {[%emt 0:00:14]} Ne7 {[%emt 0:00:05]} 6. c3 {[%emt 0:00:11]} Nd7 {[%emt 0:09:55]} 7. O-O {[%emt 0:00:38]} c5 {[%emt 0:05:15]} 8. Nh4 {[%emt 0:05:13]} Qb6 {[%emt 0:27:47]} 9. dxc5 Qxc5 {[%emt 0:03:41]} 10. Na3 {[%emt 0:14:52]} a6 {[%emt 0:06:57]} 11. Be3 {[%emt 0:04:04]} Qc7 {[%emt 0:00:55]} 12. c4 {[%emt 0:02:33]} Be4 {[%emt 0:02:43]} 13. f3 {[%emt 0:00:18]} Bg6 {[%emt 0:00:27]} 14. f4 {[%emt 0:00:18]} Be4 {[%emt 0:18:21]} 15. Rc1 {[%emt 0:05:33]} Nc6 {[%emt 0:00:26]} 16. Bf3 {[%emt 0:09:37]} Bxf3 {[%emt 0:11:52]} 17. Nxf3 {[%emt 0:00:20]} Bxa3 {[%emt 0:02:19]} 18. cxd5 {[%emt 0:00:20]} Bxb2 {[%emt 0:00:10]} 19. dxc6 {[%emt 0:00:14]} Bxc1 {[%emt 0:05:10]} 20. cxd7+ {[%emt 0:02:31]} Qxd7 {[%emt 0:00:01]} 21. Qxd7+ {[%emt 0:05:54]} Kxd7 {[%emt 0:00:01]} 22. Rd1+ {[%emt 0:00:10]} Ke7 {[%emt 0:00:09]} 23. Bxc1 {[%emt 0:00:05]} Rhd8 {[%emt 0:01:09]} 24. Ba3+ {[%emt 0:00:53]} Ke8 {[%emt 0:00:01]} 25. Bd6 {[%emt 0:00:59]} Rac8 {[%emt 0:00:12]} 26. Nd4 {[%emt 0:02:14]} g6 {[%emt 0:00:34]} 27. Nf3 {[%emt 0:01:18]} h6 {[%emt 0:02:10]} 28. Nd2 {[%emt 0:06:40]} f5 {[%emt 0:00:20]} 29. Nb3 {[%emt 0:01:59]} Kf7 {[%emt 0:00:58]} 30. Rd2 {[%emt 0:00:23]} Rc4 {[%emt 0:00:38]} 31. Na5 {[%emt 0:00:24]} Rc1+ {[%emt 0:00:44]} 32. Kf2 {[%emt 0:00:02]} b6 {[%emt 0:00:09]} 33. Nb3 {[%emt 0:00:11]} Rc4 {[%emt 0:00:03]} 34. Nd4 {[%emt 0:03:23]} Rdc8 {[%emt 0:00:11]} 35. h4 {[%emt 0:00:44]} b5 {[%emt 0:01:41]} 36. a3 {[%emt 0:00:33]} Rc1 {[%emt 0:00:22]} 37. Bb4 {[%emt 0:00:32]} Rd8 {[%emt 0:00:44]} 38. Nxb5 {[%emt 0:00:59]} Rxd2+ {[%emt 0:00:19]} 39. Bxd2 {[%emt 0:00:04]} Rc2 {[%emt 0:00:41]} 40. Nd6+ {[%emt 0:00:00]} Ke7 {[%emt 0:00:00]} 41. Ke2 {[%emt 0:00:45]} Ra2 {[%emt 0:06:04]} 42. Nc4 {[%emt 0:00:09]} Kd7 {[%emt 0:00:09]} 43. a4 {[%emt 0:09:53]} Ra1 {[%emt 0:22:00]} 44. a5 {[%emt 0:01:31]} h5 {[%emt 0:02:09]} 45. Ne3 {[%emt 0:01:43]} Kc6 {[%emt 0:01:30]} 46. g3 {[%emt 0:05:50]} Ra2 {[%emt 0:00:15]} 47. Kd3 {[%emt 0:01:06]} Ra1 {[%emt 0:01:47]} 48. Ke2 {[%emt 0:02:50]} Ra2 {[%emt 0:00:19]} 49. Ke1 {[%emt 0:00:03]} Ra3 {[%emt 0:00:34]} 50. Kf2 {[%emt 0:00:11]} Ra2 {[%emt 0:00:43]} 51. Ke2 {[%emt 0:00:02]} Ra3 {[%emt 0:00:13]} 52. Be1 {[%emt 0:01:32]} Kc5 {[%emt 0:00:46]} 53. Nc2 {[%emt 0:00:30]} Rb3 {[%emt 0:00:20]} 54. Ne3 {[%emt 0:06:54]} Kd4 {[%emt 0:00:40]} 55. Nf1 {[%emt 0:01:01]} Kd5 {[%emt 0:00:31]} 56. Nd2 {[%emt 0:01:17]} Ra3 {[%emt 0:00:26]} 57. Nf3 {[%emt 0:00:44]} Rb3 {[%emt 0:00:34]} 58. Ng5 {[%emt 0:02:24]} Rb2+ {[%emt 0:00:30]} 59. Kf3 {[%emt 0:01:09]} Rb1 {[%emt 0:00:29]} 60. Ke2 {[%emt 0:00:15]} Rb2+ {[%emt 0:00:07]} 61. Kf1 {[%emt 0:00:04]} Rb7 {[%emt 0:00:44]} 62. Bf2 {[%emt 0:00:49]} Rb1+ {[%emt 0:00:13]} 63. Be1 {[%emt 0:01:44]} Rb7 {[%emt 0:00:01]} 64. Nf3 {[%emt 0:01:18]} Rb1 {[%emt 0:01:05]} 65. Ng1 {[%emt 0:04:04]} Ke4 {[%emt 0:00:42]} 66. Nh3 {[%emt 0:00:26]} Kd5 {[%emt 0:00:12]} 67. Nf2 {[%emt 0:00:07]} Rb3 {[%emt 0:00:37]} 68. Nd1 {[%emt 0:00:28]} Ra3 {[%emt 0:00:27]} 69. Ke2 {[%emt 0:01:18]} Ke4 {[%emt 0:00:28]} 70. Bd2 {[%emt 0:03:51]} Rxg3 {[%emt 0:00:51]} 71. Be3 {[%emt 0:00:29]} Kd5 {[%emt 0:00:18]} 72. Kf2 {[%emt 0:01:12]} Rg4 {[%emt 0:00:36]} 73. Kf3 {[%emt 0:00:04]} Rxh4 {[%emt 0:00:25]} 74. Nf2 {[%emt 0:00:05]} Kc6 {[%emt 0:00:44]} 75. Kg3 {[%emt 0:00:17]} Rg4+ {[%emt 0:00:29]} 76. Nxg4 {[%emt 0:00:06]} fxg4 {[%emt 0:00:03]} 77. Bb6 {[%emt 0:01:59]} Kd5 {[%emt 0:00:13]} 78. Bd8 {[%emt 0:00:05]} Ke4 {[%emt 0:00:26]} 79. Bg5 {[%emt 0:00:05]} Kf5 {[%emt 0:00:36]} 80. Kg2 {[%emt 0:05:24]} Ke4 {[%emt 0:00:01]} 81. Kf2 {[%emt 0:00:08]} Kd3 {[%emt 0:00:11]} 82. Bh6 {[%emt 0:01:10]} Ke4 {[%emt 0:00:59]} 83. Ke2 {[%emt 0:01:11]} Kd4 {[%emt 0:00:41]} 84. Bg5 {[%emt 0:00:24]} Ke4 {[%emt 0:00:02]} 85. Kf2 {[%emt 0:00:08]} Kd3 {[%emt 0:00:05]} 86. Bd8 {[%emt 0:00:20]} Ke4 {[%emt 0:00:10]} 87. Kg3 {[%emt 0:00:42]} Kf5 {[%emt 0:00:05]} 88. Be7 {[%emt 0:08:05]} Ke4 {[%emt 0:00:02]} 89. Bc5 {[%emt 0:01:49]} Kf5 {[%emt 0:00:11]} 90. Be3 {[%emt 0:00:12]} Ke4 {[%emt 0:00:05]} 91. Bd2 {[%emt 0:00:04]} Kd3 {[%emt 0:00:19]} 92. Be1 {[%emt 0:01:03]} Ke3 {[%emt 0:00:36]} 93. Bf2+ {[%emt 0:00:10]} Ke4 {[%emt 0:00:07]} 94. Bb6 {[%emt 0:06:17]} Kf5 {[%emt 0:00:05]} 95. Bg1 {[%emt 0:00:17]} Ke4 {[%emt 0:01:36]} 96. Bh2 {[%emt 0:06:16]} Ke3 {[%emt 0:00:02]} 97. Bg1+ {[%emt 0:00:19]} Ke4 {[%emt 0:00:03]} 98. Bh2 {[%emt 0:00:06] Kxe5} 1/2-1/2

[Event "46th GRE-chT Premier 2018"]
[Site "Rio Achaia"]
[Date "2018.07.11"]
[Round "3"]
[White "Firman, Nazar"]
[Black "Firat, Burak"]
[Result "0-1"]
[ECO "C00"]
[WhiteElo "2512"]
[BlackElo "2452"]
[Annotator "ChessBase"]
[PlyCount "88"]
[EventDate "2018.07.10"]
[EventType "team-tourn"]
[EventCountry "GRE"]
[SourceTitle "playchess.com"]
[Source "ChessBase"]
[SourceQuality "1"]
[TimeControl "40/5400+30:1800+30"]

1. e4 {[%emt 0:03:20]} e6 {[%emt 0:00:00]} 2. d3 {[%emt 0:02:19]} d5 {[%emt 0:01:33]} 3. Nd2 {[%emt 0:00:15]} Nf6 {[%emt 0:02:51]} 4. Ngf3 {[%emt 0:02:01]} Nc6 {[%emt 0:01:01]} 5. c3 {[%emt 0:02:35]} e5 {[%emt 0:06:21]} 6. Be2 {[%emt 0:06:10]} Be7 {[%emt 0:06:20]} 7. b4 {[%emt 0:05:16]} a6 {[%emt 0:00:10]} 8. Bb2 {[%emt 0:01:59]} O-O {[%emt 0:00:22]} 9. O-O {[%emt 0:05:02]} b5 {[%emt 0:16:09]} 10. Re1 {[%emt 0:04:44]} Re8 {[%emt 0:00:56]} 11. a4 {[%emt 0:05:58]} Rb8 {[%emt 0:00:45]} 12. axb5 {[%emt 0:00:41]} axb5 {[%emt 0:00:02]} 13. Bf1 {[%emt 0:03:35]} Be6 {[%emt 0:16:20]} 14. Ra6 {[%emt 0:07:42]} Qd7 {[%emt 0:01:48]} 15. Qa1 {[%emt 0:08:25]} Bd6 {[%emt 0:08:01]} 16. Ng5 {[%emt 0:01:50]} Bg4 {[%emt 0:08:07]} 17. h3 {[%emt 0:10:59]} Bh5 {[%emt 0:00:02]} 18. exd5 {[%emt 0:02:41]} Nxd5 {[%emt 0:00:02]} 19. Nge4 {[%emt 0:00:16]} f5 {[%emt 0:11:35]} 20. Nxd6 {[%emt 0:01:35]} cxd6 {[%emt 0:00:02]} 21. g3 {[%emt 0:03:43]} Nc7 {[%emt 0:02:14]} 22. Ra3 {[%emt 0:01:05]} d5 {[%emt 0:03:19]} 23. Bg2 {[%emt 0:02:31]} e4 {[%emt 0:00:58]} 24. Re3 {[%emt 0:09:53]} Ne6 {[%emt 0:02:31]} 25. dxe4 {[%emt 0:02:24]} dxe4 {[%emt 0:05:37]} 26. Bc1 {[%emt 0:02:43]} Ne5 {[%emt 0:01:24]} 27. Ra7 {[%emt 0:00:08]} Qd8 {[%emt 0:03:35]} 28. c4 {[%emt 0:03:29]} Nc6 {[%emt 0:00:07]} 29. g4 {[%emt 0:00:30]} Nxa7 {[%emt 0:00:57]} 30. Qxa7 {[%emt 0:00:05]} fxg4 {[%emt 0:00:24]} 31. Rxe4 {[%emt 0:00:58]} Ra8 {[%emt 0:01:19]} 32. Qe3 {[%emt 0:00:27]} Ra1 {[%emt 0:00:30]} 33. Nb3 {[%emt 0:00:22]} Rb1 {[%emt 0:00:28]} 34. Rxe6 {[%emt 0:00:45]} Rxe6 {[%emt 0:00:01]} 35. Qxe6+ {[%emt 0:00:14]} Bf7 {[%emt 0:00:01]} 36. Qe4 {[%emt 0:00:38]} Rxb3 {[%emt 0:00:15]} 37. Bg5 {[%emt 0:00:10]} Qc8 {[%emt 0:00:36]} 38. c5 {[%emt 0:00:52]} gxh3 {[%emt 0:00:17]} 39. Bf1 {[%emt 0:00:01]} Qe8 {[%emt 0:01:28]} 40. Be7 {[%emt 0:00:00]} Ra3 {[%emt 0:00:00]} 41. Qe5 {[%emt 0:06:23]} Qa8 {[%emt 0:01:52]} 42. Kh2 {[%emt 0:03:16]} Ra1 {[%emt 0:02:05]} 43. Bxh3 {[%emt 0:00:06]} Qh1+ {[%emt 0:00:08]} 44. Kg3 {[%emt 0:00:10]} Ra3+ {[%emt 0:00:35]} 0-1

[Event "46th GRE-chT Premier 2018"]
[Site "Rio Achaia"]
[Date "2018.07.11"]
[Round "3"]
[White "Kapnisis, Spyridon"]
[Black "Souleidis, Georgios"]
[Result "1-0"]
[ECO "A13"]
[WhiteElo "2456"]
[BlackElo "2415"]
[Annotator "ChessBase"]
[PlyCount "85"]
[EventDate "2018.07.10"]
[EventType "team-tourn"]
[EventCountry "GRE"]
[SourceTitle "playchess.com"]
[Source "ChessBase"]
[SourceQuality "1"]
[TimeControl "40/5400+30:1800+30"]

1. c4 {[%emt 0:01:07]} e6 {[%emt 0:00:00]} 2. e4 {[%emt 0:01:19]} d5 {[%emt 0:01:13]} 3. exd5 {[%emt 0:00:07]} exd5 {[%emt 0:00:06]} 4. d4 {[%emt 0:00:05]} Nf6 {[%emt 0:01:43]} 5. Nc3 {[%emt 0:00:26]} Be7 {[%emt 0:04:36]} 6. Nf3 {[%emt 0:03:27]} O-O {[%emt 0:00:09]} 7. Be2 {[%emt 0:03:20]} dxc4 {[%emt 0:01:09]} 8. Bxc4 {[%emt 0:01:24]} Nbd7 {[%emt 0:00:13]} 9. O-O {[%emt 0:03:35]} Nb6 {[%emt 0:00:17]} 10. Bb3 {[%emt 0:00:06]} Bg4 {[%emt 0:13:47]} 11. h3 {[%emt 0:02:51]} Bxf3 {[%emt 0:03:24]} 12. Qxf3 {[%emt 0:00:25]} c6 {[%emt 0:00:03]} 13. Re1 {[%emt 0:07:04]} Nbd5 {[%emt 0:09:48]} 14. Bg5 {[%emt 0:05:55]} h6 {[%emt 0:24:57]} 15. Bh4 {[%emt 0:03:35]} Nxc3 {[%emt 0:04:56]} 16. bxc3 {[%emt 0:00:44]} Nd5 {[%emt 0:00:04]} 17. Bxe7 {[%emt 0:25:06]} Nxe7 {[%emt 0:00:01]} 18. Re5 {[%emt 0:00:24]} Rc8 {[%emt 0:01:54]} 19. Qe4 {[%emt 0:05:30]} Rc7 {[%emt 0:09:33]} 20. Re1 {[%emt 0:10:51]} Nd5 {[%emt 0:00:03]} 21. Bxd5 {[%emt 0:00:07]} cxd5 {[%emt 0:00:05]} 22. Rxd5 {[%emt 0:00:05]} Qc8 {[%emt 0:00:03]} 23. Qf4 {[%emt 0:06:26]} Rxc3 {[%emt 0:00:19]} 24. Re7 {[%emt 0:00:19]} Qc4 {[%emt 0:07:58]} 25. Rc5 {[%emt 0:05:29]} Qd3 {[%emt 0:03:52]} 26. Rxb7 {[%emt 0:01:07]} Rxc5 {[%emt 0:04:04]} 27. dxc5 {[%emt 0:00:04]} Qd1+ {[%emt 0:00:05]} 28. Kh2 {[%emt 0:00:03]} Qd5 {[%emt 0:00:03]} 29. Qc7 {[%emt 0:09:04]} Qxa2 {[%emt 0:00:02]} 30. c6 {[%emt 0:00:11]} Qxf2 {[%emt 0:00:32]} 31. Rb8 {[%emt 0:01:25]} Rxb8 {[%emt 0:03:58]} 32. Qxb8+ {[%emt 0:00:04]} Kh7 {[%emt 0:00:05]} 33. Qb1+ {[%emt 0:00:08]} g6 {[%emt 0:04:18]} 34. Qc1 {[%emt 0:00:05]} Qf5 {[%emt 0:00:12]} 35. c7 {[%emt 0:00:07]} Qc8 {[%emt 0:00:02]} 36. Qf4 {[%emt 0:01:48]} Qe6 {[%emt 0:01:31]} 37. Qc1 {[%emt 0:00:08]} Qc8 {[%emt 0:00:02]} 38. Qc4 {[%emt 0:00:39]} Kg8 {[%emt 0:00:08]} 39. Qc5 {[%emt 0:00:07]} Kh7 {[%emt 0:01:00]} 40. Kg1 {[%emt 0:00:00]} h5 {[%emt 0:00:00]} 41. h4 {[%emt 0:08:06]} a6 {[%emt 0:02:19]} 42. Qe7 {[%emt 0:01:27]} Qf5 {[%emt 0:02:27]} 43. Qf8 {[%emt 0:01:09]} 1-0

[Event "46th GRE-chT Premier 2018"]
[Site "Rio Achaia"]
[Date "2018.07.11"]
[Round "3"]
[White "Warmerdam, Max"]
[Black "Lupulescu, Constantin"]
[Result "0-1"]
[ECO "B12"]
[WhiteElo "2424"]
[BlackElo "2617"]
[Annotator "RC"]
[PlyCount "56"]
[EventDate "2018.07.10"]
[EventType "team-tourn"]
[EventCountry "GRE"]
[SourceTitle "playchess.com"]
[Source "ChessBase"]
[SourceQuality "1"]
[TimeControl "40/5400+30:1800+30"]

1. e4 {[%emt 0:00:00]} c6 {[%emt 0:00:00]} 2. d4 {[%emt 0:00:00]} d5 {[%emt 0:00:00]} 3. e5 {[%emt 0:00:00]} Bf5 {[%emt 0:00:00]} 4. h4 {[%emt 0:00:00]} h5 {[%emt 0:00:22]} 5. Bd3 {[%emt 0:00:00]} Bxd3 {[%emt 0:00:35]} 6. Qxd3 {[%emt 0:00:00]} Qa5+ {[%emt 0:00:16]} 7. Nd2 {[%emt 0:01:14]} e6 {[%emt 0:01:02]} 8. Ne2 {[%emt 0:09:46]} Ne7 {[%emt 0:06:47]} 9. Ng3 {[%emt 0:24:05]} c5 {[%emt 0:05:52]} 10. O-O {[%emt 0:03:03]} cxd4 {[%emt 0:06:02]} 11. Nb3 {[%emt 0:03:43]} Qa6 {[%emt 0:03:32]} 12. Qd1 {[%emt 0:11:55]} Nec6 {[%emt 0:11:36]} 13. Nxh5 {[%emt 0:02:13]} Nd7 {[%emt 0:01:48]} 14. Bg5 {[%emt 0:05:11]} Ndxe5 {[%emt 0:06:38]} 15. Re1 {[%emt 0:00:13]} Qb6 {[%emt 0:08:39]} 16. a4 {[%emt 0:05:14]} a5 {[%emt 0:08:52]} 17. c3 {[%emt 0:20:14]} d3 {[%emt 0:05:36]} 18. Be3 {[%emt 0:06:00]} Qd8 {[%emt 0:07:29]} 19. Bg5 {[%emt 0:01:10]} Be7 {[%emt 0:06:02]} 20. f4 {[%emt 0:00:31]} g6 {[%emt 0:04:19]} 21. Ng7+ {[%emt 0:02:10]} Kf8 {[%emt 0:00:43]} 22. Nxe6+ {[%emt 0:00:04]} fxe6 {[%emt 0:00:05]} 23. fxe5 {[%emt 0:00:04]} Bxg5 {[%emt 0:02:43]} 24. Qf3+ {[%emt 0:03:41]} Ke7 {[%emt 0:01:41]} 25. hxg5 {[%emt 0:00:11]} Qb6+ {[%emt 0:00:19]} 26. Nd4 {[%emt 0:00:05]} Nxd4 {[%emt 0:00:27]} 27. cxd4 {[%emt 0:00:52]} Qxd4+ {[%emt 0:00:13]} 28. Qe3 {[%emt 0:00:06]} Rh4 {[%emt 0:01:30]} 0-1

[Event "46th GRE-chT Premier 2018"]
[Site "Rio Achaia"]
[Date "2018.07.11"]
[Round "3"]
[White "Tsolakidou, Stavroula"]
[Black "Vozinaki, Anthi - Maria"]
[Result "1-0"]
[ECO "A31"]
[WhiteElo "2423"]
[BlackElo "1971"]
[Annotator "NA RC"]
[PlyCount "83"]
[EventDate "2018.07.10"]
[EventType "team-tourn"]
[EventCountry "GRE"]
[SourceTitle "playchess.com"]
[Source "ChessBase"]
[SourceQuality "1"]
[TimeControl "40/5400+30:1800+30"]

1. Nf3 {[%emt 0:00:00]} Nf6 {[%emt 0:01:06]} 2. c4 {[%emt 0:00:00]} c5 {[%emt 0:00:07]} 3. d4 {[%emt 0:00:00]} cxd4 {[%emt 0:00:20]} 4. Nxd4 {[%emt 0:00:02]} e5 {[%emt 0:00:06]} 5. Nb5 {[%emt 0:00:09]} d5 {[%emt 0:00:10]} 6. cxd5 {[%emt 0:00:10]} Bc5 {[%emt 0:00:10]} 7. N5c3 {[%emt 0:00:33]} O-O {[%emt 0:00:21]} 8. g3 {[%emt 0:00:14]} Qb6 {[%emt 0:00:13]} 9. e3 {[%emt 0:00:16]} Bg4 {[%emt 0:00:19]} 10. Be2 {[%emt 0:00:43]} Bxe2 {[%emt 0:00:11]} 11. Qxe2 {[%emt 0:00:06]} e4 {[%emt 0:05:59]} 12. a3 {[%emt 0:00:21]} a6 {[%emt 0:08:08]} 13. Nd2 {[%emt 0:04:04]} Re8 {[%emt 0:18:00]} 14. g4 {[%emt 0:27:44]} Qd8 {[%emt 0:12:55]} 15. b4 {[%emt 0:11:43]} Bf8 {[%emt 0:08:25]} 16. Bb2 {[%emt 0:02:52]} Nxd5 {[%emt 0:04:16]} 17. Ncxe4 {[%emt 0:00:23]} Nc6 {[%emt 0:02:54]} 18. Rd1 {[%emt 0:03:26]} Qc7 {[%emt 0:07:01]} 19. O-O {[%emt 0:09:32]} b5 {[%emt 0:08:13]} 20. Qf3 {[%emt 0:07:02]} Ne5 {[%emt 0:05:11]} 21. Qh3 {[%emt 0:10:56]} Qc8 {[%emt 0:05:10]} 22. Bxe5 {[%emt 0:03:34]} Rxe5 {[%emt 0:00:11]} 23. Ng3 {[%emt 0:03:01]} Re6 {[%emt 0:01:59]} 24. Nf3 {[%emt 0:01:09]} Nb6 {[%emt 0:02:45]} 25. Nf5 {[%emt 0:05:11]} Rf6 {[%emt 0:03:32]} 26. Ng5 {[%emt 0:03:43]} h6 {[%emt 0:00:44]} 27. Ne4 {[%emt 0:00:03]} Rg6 {[%emt 0:00:40]} 28. Qf3 {[%emt 0:01:50]} Nc4 {[%emt 0:01:00]} 29. Qf4 {[%emt 0:00:03]} Qe6 {[%emt 0:02:10]} 30. h4 {[%emt 0:01:25]} Ne5 {[%emt 0:01:43]} 31. f3 {[%emt 0:00:04]} h5 {[%emt 0:00:48]} 32. Ng5 {[%emt 0:00:15]} Qe8 {[%emt 0:00:34]} 33. gxh5 {[%emt 0:00:44]} Rc6 {[%emt 0:00:27]} 34. Qe4 {[%emt 0:01:02]} g6 {[%emt 0:00:40]} 35. hxg6 {[%emt 0:00:50]} fxg6 {[%emt 0:00:21]} 36. Qd5+ {[%emt 0:01:04]} Kh8 {[%emt 0:00:22]} 37. Qxe5+ {[%emt 0:00:32]} Qxe5 {[%emt 0:00:09]} 38. Nf7+ {[%emt 0:00:02]} Kg8 {[%emt 0:00:36]} 39. Nxe5 {[%emt 0:00:05]} Re6 {[%emt 0:00:20]} 40. Nxg6 {[%emt 0:00:00]} Rxg6+ {[%emt 0:00:00]} 41. Kf2 {[%emt 0:01:53]} Rc8 {[%emt 0:00:46]} 42. e4 {[%emt 0:02:14]} 1-0

[Event "46th GRE-chT Premier 2018"]
[Site "Rio Achaia"]
[Date "2018.07.11"]
[Round "3"]
[White "Malikentzos, Sotirios"]
[Black "Alexiadis, Hristos"]
[Result "1/2-1/2"]
[ECO "A07"]
[WhiteElo "2420"]
[BlackElo "2244"]
[Annotator "NA"]
[PlyCount "73"]
[EventDate "2018.07.10"]
[EventType "team-tourn"]
[EventCountry "GRE"]
[SourceTitle "playchess.com"]
[Source "ChessBase"]
[SourceQuality "1"]
[TimeControl "40/5400+30:1800+30"]

1. Nf3 {[%emt 0:00:00]} Nf6 {[%emt 0:00:17]} 2. g3 {[%emt 0:00:00]} d5 {[%emt 0:00:28]} 3. Bg2 {[%emt 0:00:00]} c6 {[%emt 0:00:24]} 4. O-O {[%emt 0:00:00]} Bg4 {[%emt 0:00:52]} 5. h3 {[%emt 0:00:17]} Bh5 {[%emt 0:02:05]} 6. c4 {[%emt 0:00:55]} e6 {[%emt 0:00:40]} 7. d4 {[%emt 0:00:11]} Nbd7 {[%emt 0:03:07]} 8. cxd5 {[%emt 0:00:31]} cxd5 {[%emt 0:00:32]} 9. Nc3 {[%emt 0:00:48]} Bd6 {[%emt 0:01:34]} 10. Qb3 {[%emt 0:11:53]} Qb6 {[%emt 0:00:38]} 11. e4 {[%emt 0:16:46]} Nxe4 {[%emt 0:33:33]} 12. Nxe4 {[%emt 0:00:33]} dxe4 {[%emt 0:00:13]} 13. Ng5 {[%emt 0:00:16]} Bg6 {[%emt 0:02:09]} 14. Nxe4 {[%emt 0:02:28]} Bxe4 {[%emt 0:00:49]} 15. Bxe4 {[%emt 0:00:03]} Rb8 {[%emt 0:07:50]} 16. Qa4 {[%emt 0:05:01]} Qa6 {[%emt 0:03:26]} 17. Qc2 {[%emt 0:01:43]} Nf6 {[%emt 0:02:45]} 18. d5 {[%emt 0:09:02]} Nxe4 {[%emt 0:10:20]} 19. Qxe4 {[%emt 0:01:38]} e5 {[%emt 0:00:13]} 20. Qg4 {[%emt 0:00:46]} g6 {[%emt 0:01:16]} 21. Bh6 {[%emt 0:01:55]} f5 {[%emt 0:02:23]} 22. Qg5 {[%emt 0:00:32]} Kf7 {[%emt 0:00:38]} 23. Qd2 {[%emt 0:07:03]} Rbc8 {[%emt 0:00:51]} 24. Be3 {[%emt 0:00:15]} Rhe8 {[%emt 0:00:47]} 25. Rfc1 {[%emt 0:03:27]} Qa4 {[%emt 0:01:36]} 26. b3 {[%emt 0:02:21]} Qb5 {[%emt 0:05:32]} 27. a4 {[%emt 0:05:47]} Rxc1+ {[%emt 0:04:05]} 28. Rxc1 {[%emt 0:00:06]} Qxb3 {[%emt 0:00:11]} 29. Bc5 {[%emt 0:00:14]} Bxc5 {[%emt 0:00:56]} 30. Rxc5 {[%emt 0:00:42]} Qb6 {[%emt 0:00:04]} 31. Rb5 {[%emt 0:02:15]} Qc7 {[%emt 0:04:55]} 32. d6 {[%emt 0:02:57]} Qc6 {[%emt 0:00:01]} 33. Qb4 {[%emt 0:03:36]} b6 {[%emt 0:01:41]} 34. a5 {[%emt 0:00:33]} Qc1+ {[%emt 0:00:54]} 35. Kg2 {[%emt 0:09:09]} Qc6+ {[%emt 0:00:29]} 36. Kh2 {[%emt 0:00:17]} Qc2 {[%emt 0:00:09]} 37. Kg2 {[%emt 0:01:35]} 1/2-1/2

[Event "46th GRE-chT Premier 2018"]
[Site "Rio Achaia"]
[Date "2018.07.11"]
[Round "3"]
[White "Dochev, Dimitar"]
[Black "Argiroudis, Stamatis"]
[Result "1/2-1/2"]
[ECO "C07"]
[WhiteElo "2399"]
[BlackElo "2306"]
[Annotator "NA"]
[PlyCount "69"]
[EventDate "2018.07.10"]
[EventType "team-tourn"]
[EventCountry "GRE"]
[SourceTitle "playchess.com"]
[Source "ChessBase"]
[SourceQuality "1"]
[TimeControl "40/5400+30:1800+30"]

1. e4 {[%emt 0:00:26]} e6 {[%emt 0:00:37]} 2. d4 {[%emt 0:02:40]} d5 {[%emt 0:00:06]} 3. Nd2 {[%emt 0:02:22]} c5 {[%emt 0:01:18]} 4. Ngf3 {[%emt 0:08:48]} cxd4 {[%emt 0:01:30]} 5. Nxd4 {[%emt 0:04:11]} Nc6 {[%emt 0:02:58]} 6. Bb5 {[%emt 0:24:11]} Bd7 {[%emt 0:01:56]} 7. Nxc6 {[%emt 0:03:24]} Bxc6 {[%emt 0:03:19]} 8. Bxc6+ {[%emt 0:00:11]} bxc6 {[%emt 0:00:06]} 9. c4 {[%emt 0:05:38]} dxe4 {[%emt 0:06:41]} 10. Nxe4 {[%emt 0:02:06]} Qxd1+ {[%emt 0:00:47]} 11. Kxd1 {[%emt 0:00:06]} Nf6 {[%emt 0:00:39]} 12. Nxf6+ {[%emt 0:00:12]} gxf6 {[%emt 0:00:06]} 13. Be3 {[%emt 0:02:02]} Rg8 {[%emt 0:03:25]} 14. g3 {[%emt 0:02:45]} c5 {[%emt 0:04:19]} 15. Kc2 {[%emt 0:00:47]} Kd7 {[%emt 0:01:29]} 16. Rad1+ {[%emt 0:05:47]} Kc6 {[%emt 0:01:56]} 17. Rd3 {[%emt 0:03:37]} Be7 {[%emt 0:02:42]} 18. Rhd1 {[%emt 0:11:45]} Rgd8 {[%emt 0:02:14]} 19. Rxd8 {[%emt 0:04:08]} Bxd8 {[%emt 0:01:26]} 20. Rd3 {[%emt 0:00:52]} f5 {[%emt 0:05:25]} 21. Ra3 {[%emt 0:01:17]} a6 {[%emt 0:00:45]} 22. Ra4 {[%emt 0:05:43]} Bb6 {[%emt 0:23:07]} 23. a3 {[%emt 0:00:26]} f6 {[%emt 0:06:42]} 24. b4 {[%emt 0:00:58]} Ra7 {[%emt 0:00:16]} 25. Rxa6 {[%emt 0:03:42]} Rxa6 {[%emt 0:01:01]} 26. b5+ {[%emt 0:00:04]} Kb7 {[%emt 0:00:03]} 27. bxa6+ {[%emt 0:00:05]} Kxa6 {[%emt 0:00:03]} 28. Kb3 {[%emt 0:00:16]} Kb7 {[%emt 0:03:28]} 29. Bd2 {[%emt 0:02:50]} Bc7 {[%emt 0:02:09]} 30. Kc2 {[%emt 0:02:47]} Be5 {[%emt 0:02:16]} 31. Kd3 {[%emt 0:00:10]} Kb6 {[%emt 0:01:24]} 32. Be3 {[%emt 0:00:08]} Bd6 {[%emt 0:00:07]} 33. Bd2 {[%emt 0:00:36]} Be5 {[%emt 0:00:20]} 34. Be3 {[%emt 0:00:21]} Bd6 {[%emt 0:00:38]} 35. Bd2 {[%emt 0:01:00]} 1/2-1/2